fUSD/lending_fUSD_20241121
["ID","MTS","AMOUNT","RATE_DAILY","PERIOD"]
[342825945,1732161034213,-151.06,0.00043964,2]
[342825946,1732161034224,-500.0,0.00044,120]
[342825947,1732161034235,-6816.92984983,0.000441,15]
[342825948,1732161034245,-1000.0,0.0004411,30]
[342825949,1732161034255,-4673.77,0.00044246,120]
[342825950,1732161034265,-1000.0,0.00044384,30]
[342825951,1732161034275,-695.64545944,0.00044585,28]
[342825952,1732161034286,-4673.77,0.00044657,120]
[342825953,1732161034297,-1000.0,0.00044658,30]
[342825954,1732161034309,-1000.0,0.00044932,30]
[342825955,1732161034319,-800.0,0.00045,120]
[342825956,1732161034329,-373.0,0.00045,120]
[342825957,1732161034339,-3555.63340387,0.00045,2]
[342825958,1732161034350,-600.0,0.00045,2]
[342825959,1732161034360,-4673.77,0.00045068,120]
[342825960,1732161034370,-1000.0,0.00045205,30]
[342825961,1732161034380,-1000.0,0.00045479,30]
[342825962,1732161034390,-4673.77,0.00045479,120]
[342825963,1732161034400,-6816.92984983,0.00045653,15]
[342825964,1732161034410,-387.98,0.00045678,7]
[342825965,1732161034421,-1000.0,0.00045679,7]
[342825966,1732161034435,-1000.0,0.00045679,7]
[342825967,1732161034445,-1000.0,0.00045679,7]
[342825968,1732161034455,-1000.0,0.00045753,30]
[342825969,1732161034465,-4673.77,0.0004589,120]
[342825970,1732161034475,-1000.0,0.00046027,30]
[342825971,1732161034486,-801.88356805,0.00046172,120]
[342825972,1732161034496,-203.641,0.0004624,120]
[342825973,1732161034506,-50000.000001,0.00046245,30]
[342825974,1732161034516,-695.64545944,0.0004627,28]
[342825975,1732161034526,-1000.0,0.00046301,30]
[342825976,1732161034536,-4673.77,0.00046301,120]
[342825977,1732161034547,-377.60951331,0.00046542,120]
[342825978,1732161034557,-1000.0,0.00046575,30]
[342825979,1732161034567,-500.0,0.000466,120]
[342825980,1732161034577,-502.49,0.000466,120]
[342825981,1732161034587,-500.0,0.000466,120]
[342825982,1732161034598,-500.0,0.000466,120]
[342825983,1732161034608,-500.0,0.000466,120]
[342825984,1732161034619,-500.0,0.000466,120]
[342825985,1732161034633,-500.0,0.000466,120]
[342825986,1732161034874,-500.0,0.000466,120]
[342825987,1732161034896,-500.0,0.000466,120]
[342825988,1732161034907,-500.0,0.000466,120]
[342825989,1732161034917,-500.0,0.000466,120]
[342825990,1732161034927,-500.0,0.000466,120]
[342825991,1732161034936,-500.0,0.000466,120]
[342825992,1732161034946,-500.0,0.000466,120]
[342825993,1732161034955,-500.0,0.000466,120]
[342825994,1732161034966,-500.0,0.000466,120]
[342825995,1732161034976,-500.0,0.000466,120]
[342825996,1732161034985,-500.0,0.000466,120]
[342825997,1732161034994,-500.0,0.000466,120]
[342825998,1732161035004,-500.0,0.000466,120]
[342825999,1732161035014,-500.0,0.000466,120]
[342826000,1732161035024,-500.0,0.000466,120]
[342826001,1732161035034,-500.0,0.000466,120]
[342826002,1732161035043,-500.0,0.000466,120]
[342826003,1732161035053,-500.0,0.000466,120]
[342826004,1732161035062,-500.0,0.000466,120]
[342826005,1732161035073,-500.0,0.000466,120]
[342826006,1732161035082,-500.0,0.000466,120]
[342826007,1732161035092,-500.0,0.000466,120]
[342826008,1732161035101,-500.0,0.000466,120]
[342826009,1732161035111,-500.0,0.000466,120]
[342826010,1732161035122,-500.0,0.000466,120]
[342826011,1732161035133,-500.0,0.000466,120]
[342826012,1732161035142,-500.0,0.000466,120]
[342826013,1732161035151,-500.0,0.000466,120]
[342826014,1732161035160,-500.0,0.000466,120]
[342826015,1732161035170,-500.0,0.000466,120]
[342826016,1732161035181,-500.0,0.000466,120]
[342826017,1732161035190,-500.0,0.000466,120]
[342826018,1732161035200,-500.0,0.000466,120]
[342826019,1732161035209,-500.0,0.000466,120]
[342826020,1732161035218,-500.0,0.000466,120]
[342826021,1732161035228,-469.11,0.000466,120]
[342826022,1732161035237,-500.0,0.000466,120]
[342826023,1732161035246,-500.0,0.000466,120]
[342826024,1732161035256,-500.0,0.000466,120]
[342826025,1732161035265,-500.0,0.000466,120]
[342826026,1732161035275,-500.0,0.000466,120]
[342826027,1732161035286,-500.0,0.000466,120]
[342826028,1732161035297,-500.0,0.000466,120]
[342826029,1732161035307,-500.0,0.000466,120]
[342826030,1732161035316,-500.0,0.000466,120]
[342826031,1732161035326,-500.0,0.000466,120]
[342826032,1732161035335,-500.0,0.000466,120]
[342826033,1732161035346,-500.0,0.000466,120]
[342826034,1732161035356,-500.0,0.000466,120]
[342826035,1732161035365,-500.0,0.000466,120]
[342826036,1732161035375,-500.0,0.000466,120]
[342826037,1732161035384,-500.0,0.000466,120]
[342826038,1732161035394,-500.0,0.000466,120]
[342826039,1732161035404,-500.0,0.000466,120]
[342826040,1732161035414,-500.0,0.000466,120]
[342826041,1732161035424,-348.74,0.000466,120]
[342826042,1732161035433,-500.0,0.000466,120]
[342826043,1732161035444,-500.0,0.000466,120]
[342826044,1732161035453,-300.7688757,0.000466,2]
[342826045,1732161035463,-500.0,0.000466,120]
[342826046,1732161035472,-500.0,0.000466,120]
[342826047,1732161035481,-500.0,0.000466,120]
[342826048,1732161035491,-430.91,0.000466,120]
[342826049,1732161035500,-152.0,0.00046617,4]
[342826050,1732161035510,-152.0,0.00046617,3]
[342826051,1732161035520,-1873.90051896,0.00046648,10]
[342826052,1732161035530,-4673.77,0.00046712,120]
[342826053,1732161035541,-1500.0,0.00046753,14]
[342826054,1732161035553,-1500.0,0.00046857,14]
[342826055,1732161035563,-904.40581378,0.00046886,2]
[342826056,1732161035573,-4544.1,0.000469,117]
[342826057,1732161035583,-1050.0,0.000469,7]
[342826058,1732161035592,-1403.0,0.000469,7]
[342826059,1732161035603,-1217.0,0.00047,120]
[342826060,1732161035613,-650.0,0.00047,2]
[342826061,1732161035626,-1500.0,0.00047077,14]
[342826062,1732161035637,-1500.0,0.00047107,14]
[342826063,1732161035647,-4673.77,0.00047123,120]
[342826064,1732161035656,-1500.0,0.00047146,14]
[342826065,1732161035665,-6816.92984983,0.00047205,15]
[342826066,1732161035676,-150.45254273,0.00047263,7]
[342826067,1732161035685,-735.95227607,0.000473,7]
[342826068,1732161035701,-4014.43150695,0.000473,7]
[342826069,1732161035713,-150.0,0.00047328,7]
[342826070,1732161035724,-150.0,0.00047329,7]
[342826071,1732161035734,-150.0,0.0004733,7]
[342826072,1732161035743,-150.0,0.00047332,7]
[342826073,1732161035752,-150.0,0.00047334,7]
[342826074,1732161035761,-150.0,0.00047336,7]
[342826075,1732161035770,-150.0,0.00047337,7]
[342826076,1732161035780,-1512.37465556,0.00047338,14]
[342826077,1732161035789,-150.0,0.00047338,7]
[342826078,1732161035798,-150.0,0.00047338,7]
[342826079,1732161035808,-150.0,0.00047343,7]
[342826080,1732161035817,-150.0,0.00047344,7]
[342826081,1732161035826,-150.0,0.00047345,7]
[342826082,1732161035835,-150.0,0.00047356,7]
[342826083,1732161035845,-150.0,0.00047356,7]
[342826084,1732161035854,-150.0,0.00047356,7]
[342826085,1732161035864,-150.0,0.00047356,7]
[342826086,1732161035873,-150.0,0.00047357,7]
[342826087,1732161035883,-150.0,0.00047359,7]
[342826088,1732161035892,-150.0,0.00047363,7]
[342826089,1732161035901,-150.0,0.00047364,7]
[342826090,1732161035911,-150.0,0.00047364,7]
[342826091,1732161035920,-150.0,0.00047366,7]
[342826092,1732161035930,-150.0,0.00047368,7]
[342826093,1732161035939,-150.0,0.00047368,7]
[342826094,1732161035948,-150.0,0.00047375,7]
[342826095,1732161035958,-150.0,0.00047379,7]
[342826096,1732161035967,-150.0,0.0004738,7]
[342826097,1732161035977,-150.0,0.00047381,7]
[342826098,1732161035987,-150.0,0.00047382,7]
[342826099,1732161035997,-150.0,0.00047383,7]
[342826100,1732161036006,-150.0,0.00047383,7]
[342826101,1732161036016,-150.0,0.00047385,7]
[342826102,1732161036026,-150.0,0.00047389,7]
[342826103,1732161036035,-3000.0,0.00047397,2]
[342826104,1732161036047,-150.0,0.00047404,7]
[342826105,1732161036056,-150.0,0.00047405,7]
[342826106,1732161036066,-1500.0,0.00047406,14]
[342826107,1732161036075,-150.0,0.00047418,7]
[342826108,1732161036085,-150.0,0.0004742,7]
[342826109,1732161036094,-150.0,0.00047421,7]
[342826110,1732161036103,-150.0,0.00047423,7]
[342826111,1732161036112,-150.0,0.00047426,7]
[342826112,1732161036122,-150.0,0.0004743,7]
[342826113,1732161036131,-150.0,0.00047433,7]
[342826114,1732161036140,-150.0,0.00047433,7]
[342826115,1732161036149,-150.0,0.00047435,7]
[342826116,1732161036158,-150.0,0.00047435,7]
[342826117,1732161036168,-150.0,0.00047436,7]
[342826118,1732161036179,-150.0,0.00047437,7]
[342826119,1732161036190,-150.0,0.00047444,7]
[342826120,1732161036199,-150.0,0.00047446,7]
[342826121,1732161036209,-150.0,0.00047446,7]
[342826122,1732161036219,-150.0,0.00047447,7]
[342826123,1732161036229,-150.0,0.00047449,7]
[342826124,1732161036238,-150.0,0.00047456,7]
[342826125,1732161036248,-150.0,0.00047457,7]
[342826126,1732161036258,-1225.88030951,0.0004746,14]
[342826127,1732161036267,-150.0,0.00047461,7]
[342826128,1732161036277,-1500.0,0.00047462,14]
[342826129,1732161036287,-150.0,0.00047463,7]
[342826130,1732161036298,-150.0,0.00047464,7]
[342826131,1732161036308,-150.0,0.00047466,7]
[342826132,1732161036318,-150.0,0.0004747,7]
[342826133,1732161036329,-150.0,0.00047473,7]
[342826134,1732161036338,-150.0,0.00047474,7]
[342826135,1732161036348,-150.0,0.00047474,7]
[342826136,1732161036357,-150.0,0.00047476,7]
[342826137,1732161036367,-150.0,0.0004748,30]
[342826138,1732161036377,-150.0,0.0004748,7]
[342826139,1732161036388,-150.0,0.00047492,7]
[342826140,1732161036398,-150.0,0.00047492,7]
[342826141,1732161036408,-150.0,0.00047497,7]
[342826142,1732161036418,-300.0,0.00047499,14]
[342826143,1732161036427,-1000.0,0.000475,2]
[342826144,1732161036437,-150.0,0.00047501,7]
[342826145,1732161036447,-150.0,0.00047501,7]
[342826146,1732161036456,-151.88493693,0.00047501,14]
[342826147,1732161036466,-150.0,0.00047507,7]
[342826148,1732161036477,-150.0,0.0004751,7]
[342826149,1732161036487,-150.0,0.0004751,7]
[342826150,1732161036496,-150.0,0.00047511,7]
[342826151,1732161036506,-150.0,0.00047515,7]
[342826152,1732161036515,-150.0,0.00047516,7]
[342826153,1732161036525,-150.0,0.0004752,7]
[342826154,1732161036535,-150.0,0.00047523,7]
[342826155,1732161036545,-223.9852102,0.00047523,7]
[342826156,1732161036554,-150.0,0.00047526,7]
[342826157,1732161036565,-150.0,0.00047529,7]
[342826158,1732161036574,-150.0,0.00047529,7]
[342826159,1732161036584,-150.0,0.0004753,7]
[342826160,1732161036593,-150.0,0.00047531,7]
[342826161,1732161036604,-150.0,0.00047531,7]
[342826162,1732161036614,-4673.77,0.00047534,120]
[342826163,1732161036627,-150.0,0.00047543,7]
[342826164,1732161036637,-150.0,0.00047554,7]
[342826165,1732161036647,-150.0,0.00047559,7]
[342826166,1732161036657,-150.0,0.00047561,7]
[342826167,1732161036668,-150.0,0.00047561,7]
[342826168,1732161036679,-150.0,0.00047561,7]
[342826169,1732161036693,-150.0,0.00047564,7]
[342826170,1732161036705,-150.0,0.00047567,7]
[342826171,1732161036929,-150.0,0.00047568,7]
[342826172,1732161036939,-150.0,0.00047568,7]
[342826173,1732161036948,-150.0,0.00047569,7]
[342826174,1732161036958,-150.0,0.0004757,7]
[342826175,1732161036967,-150.0,0.00047577,7]
[342826176,1732161036977,-150.0,0.00047586,7]
[342826177,1732161036986,-150.0,0.00047587,7]
[342826178,1732161036997,-1500.0,0.00047589,14]
[342826179,1732161037007,-150.0,0.00047591,7]
[342826180,1732161037016,-150.0,0.00047593,7]
[342826181,1732161037026,-150.0,0.00047599,15]
[342826182,1732161037036,-10000.0,0.000476,2]
[342826183,1732161037047,-10000.0,0.000476,2]
[342826184,1732161037056,-10000.0,0.000476,2]
[342826185,1732161037065,-104506.53427324,0.000476,30]
[342826186,1732161037075,-2688.998,0.000478,60]
[342826187,1732161037084,-400.0,0.000479,17]
[342826188,1732161037095,-4673.77,0.00047945,120]
[342826189,1732161037104,-5000.0,0.00047945,120]
[342826190,1732161037114,-695.64545944,0.00047955,28]
[342826191,1732161037123,-15090.21650106,0.00048,120]
[342826192,1732161037132,-500.0,0.00048,120]
[342826193,1732161037143,-204.11151833,0.00048,60]
[342826194,1732161037153,-1000.0,0.00048086,2]
[342826195,1732161037163,-5000.0,0.00048219,120]
[342826196,1732161037173,-4673.77,0.00048356,120]
[342826197,1732161037183,-5000.0,0.00048493,120]
[342826198,1732161037193,-203.671,0.0004862,120]
[342826199,1732161037202,-16672.07112145,0.000487,120]
[342826200,1732161037212,-2084.39575026,0.00048708,2]
[342826201,1732161037222,-294.39054057,0.00048708,2]
[342826202,1732161037234,-200.0,0.00048709,2]
[342826203,1732161037243,-200.0,0.00048712,2]
[342826204,1732161037254,-200.0,0.00048715,2]
[342826205,1732161037264,-231.15461161,0.00048717,2]
[342826206,1732161037273,-200.0,0.00048718,2]
[342826207,1732161037283,-200.0,0.00048719,2]
[342826208,1732161037293,-200.0,0.00048727,2]
[342826209,1732161037304,-1573.97735513,0.00048729,2]
[342826210,1732161037314,-200.0,0.00048733,2]
[342826211,1732161037323,-622.17462126,0.00048736,2]
[342826212,1732161037334,-358.37924285,0.00048736,2]
[342826213,1732161037343,-151.0,0.00048738,14]
[342826214,1732161037353,-151.0,0.00048738,7]
[342826215,1732161037363,-151.845552,0.00048738,14]
[342826216,1732161037372,-33074.9871287,0.00048738,2]
[342826217,1732161037382,-33074.9871287,0.0004874,2]
[342826218,1732161037392,-200.0,0.0004874,2]
[342826219,1732161037401,-416.85699622,0.0004874,2]
[342826220,1732161037410,-1259.61001461,0.00048742,2]
[342826221,1732161037420,-200.0,0.00048742,2]
[342826222,1732161037429,-200.0,0.00048742,2]
[342826223,1732161037439,-294.39054057,0.00048743,2]
[342826224,1732161037449,-1259.61001461,0.00048743,2]
[342826225,1732161037459,-1259.61001461,0.00048743,2]
[342826226,1732161037469,-200.0,0.00048744,2]
[342826227,1732161037478,-622.17462126,0.00048746,2]
[342826228,1732161037488,-1259.61001461,0.0004875,2]
[342826229,1732161037498,-995.54067709,0.00048751,2]
[342826230,1732161037508,-622.17462126,0.00048753,2]
[342826231,1732161037518,-1873.481,0.00048754,84]
[342826232,1732161037528,-200.0,0.00048755,2]
[342826233,1732161037537,-200.0,0.00048757,2]
[342826234,1732161037549,-6816.92984983,0.00048758,15]
[342826235,1732161037558,-231.15461161,0.0004876,2]
[342826236,1732161037568,-200.0,0.00048766,2]
[342826237,1732161037577,-4673.77,0.00048767,120]
[342826238,1732161037587,-5000.0,0.00048767,120]
[342826239,1732161037596,-1573.97735513,0.0004877,2]
[342826240,1732161037606,-231.15461161,0.00048774,2]
[342826241,1732161037615,-200.0,0.00048775,2]
[342826242,1732161037626,-1573.97735513,0.0004878,2]
[342826243,1732161037637,-200.0,0.00048784,2]
[342826244,1732161037647,-200.0,0.00048784,2]
[342826245,1732161037656,-995.54067709,0.00048786,2]
[342826246,1732161037666,-200.0,0.0004879,2]
[342826247,1732161037676,-294.39054057,0.0004879,2]
[342826248,1732161037685,-200.0,0.00048791,2]
[342826249,1732161037694,-2084.39575026,0.00048793,2]
[342826250,1732161037704,-1259.61001461,0.00048793,2]
[342826251,1732161037715,-200.0,0.00048793,2]
[342826252,1732161037725,-294.39054057,0.00048795,2]
[342826253,1732161037735,-33074.9871287,0.00048795,2]
[342826254,1732161037744,-200.0,0.00048796,2]
[342826255,1732161037754,-200.0,0.00048798,2]
[342826256,1732161037764,-358.37924285,0.00048805,2]
[342826257,1732161037777,-200.0,0.00048806,2]
[342826258,1732161037786,-200.0,0.0004881,2]
[342826259,1732161037796,-416.85699622,0.0004881,2]
[342826260,1732161037806,-33074.9871287,0.00048811,2]
[342826261,1732161037815,-200.0,0.00048814,2]
[342826262,1732161037824,-416.85699622,0.00048816,2]
[342826263,1732161037835,-200.0,0.00048816,2]
[342826264,1732161037844,-2084.39575026,0.00048817,2]
[342826265,1732161037854,-1573.97735513,0.00048818,2]
[342826266,1732161037865,-622.17462126,0.00048825,2]
[342826267,1732161037874,-1573.97735513,0.00048826,2]
[342826268,1732161037884,-2084.39575026,0.00048826,2]
[342826269,1732161037894,-358.37924285,0.00048829,2]
[342826270,1732161037905,-995.54067709,0.00048833,2]
[342826271,1732161037915,-622.17462126,0.00048839,2]
[342826272,1732161037925,-416.85699622,0.00048841,2]
[342826273,1732161037934,-200.0,0.00048845,2]
[342826274,1732161037943,-200.0,0.00048847,2]
[342826275,1732161037953,-1259.61001461,0.00048848,2]
[342826276,1732161037963,-622.17462126,0.00048849,2]
[342826277,1732161037972,-200.0,0.00048853,2]
[342826278,1732161037982,-2084.39575026,0.00048853,2]
[342826279,1732161037992,-2084.39575026,0.00048854,2]
[342826280,1732161038002,-200.0,0.00048857,2]
[342826281,1732161038012,-48.37025646,0.00048857,2]
[342826282,1732161038026,-151.62974354,0.00048857,2]
[342826283,1732161038036,-358.37924285,0.00048862,2]
[342826285,1732161038046,-231.15461161,0.00048864,2]
[342826287,1732161038055,-278.39614877,0.00048865,2]
[342826289,1732161038128,-945.00060746,0.00048865,2]
[342826290,1732161038139,-17105.35888429,0.00048865,2]
[342826291,1732161038150,-14746.23148818,0.00048865,2]
[342826292,1732161038160,-231.15461161,0.00048865,2]
[342826293,1732161038170,-416.85699622,0.00048867,2]
[342826294,1732161038179,-200.0,0.00048869,2]
[342826295,1732161038188,-200.0,0.00048871,2]
[342826296,1732161038199,-200.0,0.00048872,2]
[342826297,1732161038208,-416.85699622,0.00048875,2]
[342826298,1732161038218,-1259.61001461,0.00048879,2]
[342826299,1732161038228,-200.0,0.00048879,2]
[342826300,1732161038237,-231.15461161,0.00048882,2]
[342826301,1732161038247,-622.17462126,0.00048883,2]
[342826302,1732161038257,-200.0,0.00048886,2]
[342826303,1732161038267,-200.0,0.00048887,2]
[342826304,1732161038276,-200.0,0.0004889,2]
[342826305,1732161038287,-200.0,0.00048891,2]
[342826306,1732161038296,-200.0,0.00048893,2]
[342826307,1732161038306,-200.0,0.00048894,2]
[342826308,1732161038316,-200.0,0.00048897,2]
[342826309,1732161038325,-358.37924285,0.00048897,2]
[342826310,1732161038335,-622.17462126,0.00048899,2]
[342826311,1732161038345,-800.0,0.000489,17]
[342826312,1732161038355,-200.0,0.00048903,2]
[342826313,1732161038364,-200.0,0.00048904,2]
[342826314,1732161038373,-944.29771273,0.00048906,2]
[342826365,1732161042903,-239.59,0.00022,2]
[342826366,1732161042912,-1100.063,0.00024118,2]
[342826367,1732161042921,-1093.0,0.00027118,2]
[342826368,1732161042931,-3971.7820444,0.00041314,2]
[342826369,1732161042940,-620.00234752,0.000436,2]
[342826370,1732161042950,-150.0,0.00047325,7]
[342826371,1732161042959,-150.0,0.00047334,7]
[342826372,1732161042970,-150.0,0.00047348,7]
[342826373,1732161042980,-150.0,0.00047349,7]
[342826374,1732161042989,-150.0,0.00047353,7]
[342826375,1732161042999,-150.0,0.00047358,7]
[342826376,1732161043008,-150.0,0.00047367,7]
[342826377,1732161043017,-150.0,0.00047376,7]
[342826378,1732161043027,-150.0,0.00047376,7]
[342826379,1732161043037,-150.0,0.00047379,7]
[342826381,1732161043049,-150.0,0.0004738,7]
[342826383,1732161043058,-150.0,0.00047382,7]
[342826385,1732161043068,-150.0,0.00047384,7]
[342826387,1732161043077,-150.0,0.00047387,7]
[342826389,1732161043088,-150.0,0.00047396,7]
[342826391,1732161043098,-150.0,0.00047398,7]
[342826392,1732161043108,-150.0,0.00047399,7]
[342826394,1732161043117,-150.0,0.00047403,7]
[342826396,1732161043126,-150.0,0.00047416,7]
[342826397,1732161043135,-150.0,0.0004743,7]
[342826398,1732161043145,-150.0,0.00047431,7]
[342826399,1732161043155,-150.0,0.00047433,7]
[342826400,1732161043166,-150.0,0.00047437,7]
[342826401,1732161043177,-150.0,0.00047441,7]
[342826402,1732161043186,-150.0,0.00047444,7]
[342826403,1732161043195,-150.0,0.00047451,7]
[342826404,1732161043204,-150.0,0.00047452,7]
[342826405,1732161043214,-150.0,0.00047455,7]
[342826406,1732161043223,-150.0,0.00047459,7]
[342826408,1732161043233,-150.0,0.00047459,7]
[342826410,1732161043242,-150.0,0.00047462,7]
[342826412,1732161043251,-150.0,0.00047468,7]
[342826414,1732161043261,-150.0,0.00047469,7]
[342826416,1732161043271,-150.0,0.00047469,7]
[342826418,1732161043280,-150.0,0.0004747,7]
[342826419,1732161043289,-150.0,0.00047473,7]
[342826420,1732161043299,-150.0,0.00047491,7]
[342826421,1732161043309,-150.0,0.00047494,7]
[342826422,1732161043319,-150.0,0.00047503,7]
[342826423,1732161043328,-150.0,0.0004751,7]
[342826424,1732161043338,-150.0,0.00047519,7]
[342826425,1732161043347,-150.0,0.00047519,7]
[342826426,1732161043357,-150.0,0.00047529,7]
[342826427,1732161043367,-150.0,0.00047529,7]
[342826428,1732161043376,-150.0,0.00047537,7]
[342826429,1732161043385,-150.0,0.00047541,7]
[342826430,1732161043395,-150.0,0.00047542,7]
[342826431,1732161043405,-150.0,0.00047546,7]
[342826432,1732161043414,-150.0,0.00047553,7]
[342826433,1732161043424,-150.0,0.00047554,7]
[342826436,1732161043434,-150.0,0.00047556,7]
[342826438,1732161043443,-150.0,0.00047571,7]
[342826440,1732161043453,-150.0,0.00047579,7]
[342826442,1732161043463,-150.0,0.0004758,7]
[342826444,1732161043473,-150.0,0.00047585,7]
[342826447,1732161043483,-150.0,0.00047586,7]
[342826449,1732161043493,-150.0,0.00047591,7]
[342826451,1732161043505,-150.0,0.00048464,7]
[342826453,1732161043515,-150.0,0.00048631,7]
[342826454,1732161043526,-150.0,0.00048638,7]
[342826455,1732161043534,-7518.48369821,0.00048906,2]
[342826457,1732161043652,-150.0,0.00047433,7]
[342826458,1732161043662,-150.0,0.00047541,7]
[342826459,1732161043671,-150.0,0.00047571,7]
[342826460,1732161043681,-150.0,0.00048522,7]
[342826462,1732161043690,-6353.4031224,0.00048906,2]
[342826463,1732161043702,-2187.4592482,0.00048906,2]
[342826464,1732161043713,-6443.60887143,0.00048906,2]
[342826465,1732161043723,-995.54067709,0.00048907,2]
[342826466,1732161043732,-200.0,0.0004891,2]
[342826467,1732161043742,-200.0,0.00048916,2]
[342826468,1732161043751,-200.0,0.00048917,2]
[342826469,1732161043760,-200.0,0.0004892,2]
[342826470,1732161043769,-231.15461161,0.0004892,2]
[342826471,1732161043779,-358.37924285,0.00048926,2]
[342826472,1732161043788,-294.39054057,0.00048929,2]
[342826473,1732161043798,-1573.97735513,0.0004893,2]
[342826474,1732161043811,-1573.97735513,0.00048934,2]
[342826475,1732161043821,-294.39054057,0.00048935,2]
[342826476,1732161043830,-995.54067709,0.00048937,2]
[342826477,1732161043839,-151.0,0.00048937,7]
[342826478,1732161043848,-33074.9871287,0.00048937,2]
[342826479,1732161043857,-358.37924285,0.00048939,2]
[342826480,1732161043866,-200.0,0.00048945,2]
[342826481,1732161043875,-200.0,0.00048947,2]
[342826482,1732161043885,-151.0,0.00048951,14]
[342826483,1732161043894,-33074.9871287,0.00048951,2]
[342826484,1732161043904,-200.0,0.00048954,2]
[342826485,1732161043914,-200.0,0.00048957,2]
[342826486,1732161043923,-200.0,0.00048958,2]
[342826487,1732161043932,-294.39054057,0.00048959,2]
[342826488,1732161043941,-200.0,0.00048961,2]
[342826489,1732161043951,-200.0,0.00048963,2]
[342826490,1732161043965,-200.0,0.00048965,2]
[342826491,1732161043974,-151.0,0.00048966,14]
[342826492,1732161043983,-151.0,0.00048966,14]
[342826494,1732161043993,-151.0,0.00048966,14]
[342826496,1732161044002,-151.0,0.00048966,14]
[342826498,1732161044011,-629.469314,0.00048966,14]
[342826499,1732161044022,-629.469314,0.00048966,14]
[342826500,1732161044031,-151.0,0.00048966,14]
[342826501,1732161044044,-151.0,0.00048966,14]
[342826502,1732161044057,-33074.9871287,0.00048966,2]
[342826503,1732161044067,-2084.39575026,0.00048969,2]
[342826504,1732161044077,-200.0,0.00048973,2]
[342826505,1732161044087,-151.0,0.00048973,14]
[342826506,1732161044096,-151.0,0.00048973,14]
[342826507,1732161044106,-151.0,0.00048973,14]
[342826508,1732161044115,-151.0,0.00048973,14]
[342826509,1732161044125,-152.234558,0.00048973,14]
[342826510,1732161044134,-151.304065,0.00048973,14]
[342826511,1732161044144,-151.0,0.00048973,14]
[342826512,1732161044153,-151.0,0.00048973,14]
[342826513,1732161044163,-151.0,0.00048973,14]
[342826514,1732161044172,-152.453787,0.00048973,14]
[342826515,1732161044181,-151.0,0.00048973,14]
[342826516,1732161044190,-151.0,0.00048973,14]
[342826517,1732161044199,-151.0,0.00048973,14]
[342826519,1732161044208,-151.0,0.00048973,14]
[342826520,1732161044217,-151.0,0.00048973,14]
[342826521,1732161044226,-151.0,0.00048973,14]
[342826522,1732161044235,-323.507843,0.00048973,14]
[342826523,1732161044244,-323.507843,0.00048973,14]
[342826524,1732161044253,-151.0,0.00048973,14]
[342826525,1732161044262,-151.0,0.00048973,14]
[342826526,1732161044271,-151.0,0.00048973,14]
[342826528,1732161044535,-291.100054,0.00048973,14]
[342826529,1732161044545,-151.0,0.00048973,14]